[Event "Israel National League 2024"]
[Site "Israel"]
[Date "2024.02.16"]
[Round "7.2"]
[White "Aizenberg, Benny"]
[Black "Gorshtein, Ido"]
[Result "0-1"]
[ECO "B94"]
[WhiteElo "2396"]
[BlackElo "2523"]
[Annotator "TA"]
[PlyCount "88"]
[EventDate "2024.01.07"]
[EventType "team-tourn"]
[EventCountry "ISR"]
[SourceTitle "playchess.com"]
[Source "ChessBase"]
[SourceQuality "1"]
[TimeControl "40/5400+30:1800+30"]

{[%evp 13,88,0,25,0,36,37,36,35,67,7,11,18,45,53,95,91,80,50,50,16,58,35,24,23,14,9,0,10,25,-14,-7,-68,-68,-64,-64,-81,-34,-128,-144,-148,-150,-114,-95,-125,-117,-128,-35,-97,-40,-136,-122,-152,-154,-141,-129,-129,-121,-128,-135,-149,-148,-157,-163,-161,-159,-385,-379,-481,-193,-186,-188,-573,-540,-5639,-5658,-29995,-29996]} 1. e4 {[%emt 0:00:03]} c5 {[%emt 0:00:09]} 2. Nf3 {[%emt 0:00:04]} d6 {[%emt 0:00:05]} 3. d4 {[%emt 0:00:05]} cxd4 {[%emt 0:00:07]} 4. Nxd4 {[%emt 0:00:03]} Nf6 {[%emt 0:00:08]} 5. Nc3 {[%emt 0:00:04]} a6 {[%emt 0:00:03]} 6. Bg5 {[%emt 0:00:04]} Nbd7 {[%emt 0:00:07]} 7. f4 {[%emt 0:00:03][%cal Bf2f4,Bf4f5][%mdl 32]} Qc7 {[%emt 0:00:07]} 8. Qf3 {[%emt 0:00:05]} h6 {[%emt 0:00:35]} 9. Bxf6 {[%emt 0:00:04]} Nxf6 {[%emt 0:00:08]} 10. f5 {[%emt 0:00:03] White is slightly better.} Qc5 {[%emt 0:00:07]} 11. Qd3 {[%emt 0:00:03]} (11. O-O-O $14) 11... Bd7 {[%emt 0:11:54]} 12. O-O-O {[%emt 0:00:05]} g5 {[%emt 0:00:05]} 13. fxg6 {[%emt 0:02:36]} Qg5+ {[%emt 0:05:24]} 14. Kb1 {[%emt 0:00:59] aiming for gxf7+.} Qxg6 {[%emt 0:00:03]} 15. g3 {[%emt 0:16:04]} e6 {[%emt 0:05:40] Prevents Nf5} 16. Bg2 {[%emt 0:07:42]} Be7 {[%emt 0:01:34]} 17. Qe2 {[%emt 0:11:31]} Qh5 {[%emt 0:02:58]} 18. Nf3 {[%emt 0:02:03]} Bc6 {[%emt 0:01:55]} 19. h3 {[%emt 0:03:00]} Rg8 {[%emt 0:07:27]} 20. g4 {[%emt 0:06:43]} Qc5 {[%emt 0:00:45]} 21. Rhe1 {[%emt 0:09:50]} Nd7 {[%emt 0:04:02]} 22. Qd2 {[%emt 0:03:16]} (22. Rd3 $11) 22... h5 $15 {[%emt 0:04:04]} 23. gxh5 {[%emt 0:02:04]} Qxh5 {[%emt 0:01:05]} 24. Qf2 {[%emt 0:06:06]} Qc5 {[%emt 0:01:46]} (24... O-O-O $17 25. Rf1 Qc5) 25. Qf1 {[%emt 0:01:59]} (25. Nd4 $15) 25... Rc8 $17 {[%emt 0:04:54]} 26. e5 {[%emt 0:05:06] Against Bf6} Bxf3 {[%emt 0:10:43]} 27. Qxf3 {[%emt 0:06:50]} d5 {[%emt 0:03:11]} (27... Nxe5 {keeps more tension.} 28. Qxb7 Rg3 29. Rf1 Rxc3 30. bxc3 Nd7) 28. Re2 {[%emt 0:04:22]} Rg5 {[%emt 0:02:26]} 29. Rde1 {[%emt 0:00:25]} Qc7 {[%emt 0:06:02]} (29... Qd4 $17 {[%cal Rd7e5]} 30. Nxd5 (30. Rd1 $2 Rxc3 31. Qf1 Qb6 $19) 30... Qxd5 31. Qxd5 exd5 32. Bxd5 Rc5 33. Bxb7 Rcxe5 34. Rxe5 Nxe5 35. Bxa6 Nf3) 30. Qf4 {[%emt 0:02:15] [#]} (30. Qd3 $15) 30... Qc4 {[%emt 0:03:15]} ({Black should try} 30... Qa5 $1 $17 {...Rxc3 is the strong threat.} 31. h4 Rc4 32. Qxc4 dxc4 33. hxg5 Qb6 (33... Bxg5 34. Bxb7 Qb6 35. Bf3 $11)) 31. Qd2 {[%emt 0:02:28] [#]} (31. Qxc4 $1 $15 Rxc4 32. Bxd5 Rxc3 (32... exd5 33. e6 $15) 33. bxc3 exd5 34. e6 fxe6 35. Rxe6) 31... Nb6 $1 {[%emt 0:05:56] Black is much more active.} 32. Rf2 {[%emt 0:00:59]} Qh4 {[%emt 0:02:45] ...Nc4 would now be deadly.} 33. Bf1 {[%emt 0:01:46]} Nd7 {[%emt 0:02:57]} 34. Rf4 {[%emt 0:04:08]} Qh7 {[%emt 0:02:32]} 35. Qd4 {[%emt 0:01:05]} Qg7 {[%emt 0:01:04]} 36. Rg4 {[%emt 0:01:10]} Rxg4 {[%emt 0:00:22]} (36... Nxe5 $2 {perishes.} 37. Rxg5 Bxg5 38. Qxe5 $18 (38. Rxe5 Bf6 $16)) 37. hxg4 {[%emt 0:00:01]} Bh4 {[%emt 0:01:36]} 38. Re2 {[%emt 0:02:43]} Bg3 {[%emt 0:00:12][%cal Rg3e5]} 39. Qa7 $2 {[%emt 0:01:17] Now White is beyond hope.} (39. Qb4 $17) 39... Bxe5 $19 {[%emt 0:00:17]} 40. Na4 {[%emt 0:00:40]} ({Weaker is} 40. Qxb7 Rb8 41. Qxa6 Bxc3 $19) 40... Rc7 {[%emt 0:07:12]} (40... Qxg4 $142 41. b3 Ke7 (41... Qd4 $2 42. Qxd4 Bxd4 43. Rd2 $19)) 41. Nb6 {[%emt 0:03:09]} Qxg4 $40 {[%emt 0:06:17][%mdl 128] Hoping for ...Qd4. Black has strong attack.} 42. Qa8+ $2 {[%emt 0:06:45]} (42. Nxd7 {was the crucial defense.} Kxd7 43. Qe3) 42... Ke7 {[%emt 0:01:14]} 43. Nc8+ {[%emt 0:00:08] [#]} Rxc8 $1 {[%emt 0:00:53]} 44. Qxc8 {[%emt 0:00:06]} (44. Qa7 Rh8) 44... Qd4 {[%emt 0:00:04] Weighted Error Value: White=0.57/Black=0.20 (precise) .  Loses game:     	White=1     	---        Mistake:       	White=6     	Black=4      Inaccurate:     	White=6     	Black=5      OK:         	White=9     	Black=15     Best:        	White=4     	Black=2      Strong:       	---       	Black=1      Brilliant:      	---       	Black=1} 0-1

[Event "Israel National League 2024"]
[Site "Israel"]
[Date "2024.02.16"]
[Round "7.3"]
[White "Rozen, Eytan"]
[Black "Baron, Tal"]
[Result "1-0"]
[ECO "A36"]
[WhiteElo "2462"]
[BlackElo "2490"]
[Annotator "TA"]
[PlyCount "121"]
[EventDate "2024.01.07"]
[EventType "team-tourn"]
[EventCountry "ISR"]
[SourceTitle "playchess.com"]
[Source "ChessBase"]
[SourceQuality "1"]
[TimeControl "40/5400+30:1800+30"]

{[%evp 34,121,122,70,69,60,62,56,59,56,98,106,171,180,200,130,124,128,124,131,139,98,115,63,65,69,84,94,140,135,135,141,182,177,169,138,134,120,175,175,297,202,191,203,196,202,198,84,112,95,91,97,88,96,84,84,91,84,112,112,112,118,362,344,270,137,137,137,1555,1267,5393,4844,9939,11765,29966,29967,12817,11466,29968,29971,29970,29972,29979,29980,29980,29981,29981,29982,29982,29983]} 1. c4 {[%emt 0:00:21]} c5 {[%emt 0:00:07]} 2. Nc3 {[%emt 0:01:30]} g6 {[%emt 0:00:07]} 3. g3 {[%emt 0:00:12]} Bg7 {[%emt 0:00:03]} 4. Bg2 {[%emt 0:01:06]} Nc6 {[%emt 0:00:05]} 5. d3 {[%emt 0:00:06]} d6 {[%emt 0:01:15]} 6. a3 {[%emt 0:00:44] A36: Symmetrical English vs ...g6: 4 Bg2 Bg7.} Qd7 {[%emt 0:09:49]} 7. Bd2 {[%emt 0:06:00]} e6 $146 {[%emt 0:02:42]} ({Predecessor:} 7... b6 8. b4 Bb7 9. b5 Ne5 10. Nf3 Nxf3+ 11. Bxf3 Bxf3 12. exf3 e6 13. O-O Ne7 14. Ra2 {1-0 Granda Zuniga,J (2674)-Felgaer,R (2577) American Continental 10th 2014 (10)}) 8. h4 {[%emt 0:05:11]} h6 {[%emt 0:00:59]} 9. Nh3 {[%emt 0:03:36]} Nge7 {[%emt 0:07:29]} 10. Nf4 {[%emt 0:08:06]} b6 {[%emt 0:11:04]} 11. b4 {[%emt 0:05:58]} Bb7 {[%emt 0:01:30]} 12. Rb1 {[%emt 0:00:14]} O-O {[%emt 0:01:47]} 13. Qa4 {[%emt 0:06:33]} a6 {[%emt 0:06:43]} 14. bxc5 {[%emt 0:04:01]} bxc5 {[%emt 0:03:43]} 15. O-O {[%emt 0:03:47]} Qc7 {[%emt 0:00:39]} 16. Rb2 {[%emt 0:06:29]} Rab8 {[%emt 0:06:12]} 17. Rfb1 {[%emt 0:02:03]} a5 {[%emt 0:00:30]} 18. Rb3 {[%emt 0:08:13]} ({White should play} 18. d4 $1 $16) 18... Ba8 $14 {[%emt 0:05:51]} 19. Rxb8 {[%emt 0:04:12]} Rxb8 {[%emt 0:00:05]} 20. Rxb8+ {[%emt 0:00:06]} Qxb8 {[%emt 0:00:04]} 21. Qb5 {[%emt 0:01:09]} Bb7 {[%emt 0:10:31]} 22. Ne4 {[%emt 0:05:00]} Nd4 {[%emt 0:04:56] [#]} (22... Be5 $16) 23. Qb6 $1 $18 {[%emt 0:02:15]} Be5 {[%emt 0:10:36]} 24. e3 {[%emt 0:08:05]} Ndc6 {[%emt 0:00:23]} 25. Bc3 {[%emt 0:01:04]} ({Resist} 25. Bxa5 Nxa5 26. Qxa5 Bc6) 25... Bxc3 {[%emt 0:07:31]} 26. Nxc3 {[%emt 0:00:04]} Nc8 {[%emt 0:03:04]} 27. Qb5 {[%emt 0:02:44]} N8a7 {[%emt 0:00:04]} 28. Qb2 {[%emt 0:01:00]} (28. Qb3 $16) 28... Ba6 $1 $14 {[%emt 0:00:36]} 29. Qa1 {[%emt 0:01:58]} (29. Qxb8+ {simplifies} Nxb8 30. Nfe2 Kf8 31. Nc1) 29... Ne5 {[%emt 0:00:08]} 30. Ne4 {[%emt 0:00:15]} f5 {[%emt 0:01:55]} ({Black should try} 30... Qc7) 31. Nd2 $16 {[%emt 0:01:32]} Kf7 {[%emt 0:00:03]} 32. Qc3 {[%emt 0:00:47]} g5 {[%emt 0:02:16]} 33. hxg5 {[%emt 0:01:35]} hxg5 {[%emt 0:00:01]} 34. Nh3 {[%emt 0:00:08]} g4 {[%emt 0:00:28]} 35. Nf4 {[%emt 0:00:30]} (35. Qxa5 gxh3 36. Bxh3 Bb7 $19) 35... Qd8 {[%emt 0:01:34]} (35... Qb6 $16) 36. d4 $18 {[%emt 0:02:30]} Ng6 {[%emt 0:00:39]} (36... cxd4 $142 37. exd4 Ng6) 37. Nxg6 {[%emt 0:01:10]} Kxg6 {[%emt 0:00:01]} 38. dxc5 {[%emt 0:00:13]} dxc5 {[%emt 0:00:11]} 39. Nb3 {[%emt 0:01:50]} Qf6 {[%emt 0:00:30]} 40. Qxf6+ {[%emt 0:02:19]} (40. Qd3 $18) 40... Kxf6 $16 {[%emt 0:00:00]} 41. Nxa5 {[%emt 0:30:06]} Nc8 {[%emt 0:32:01]} 42. Bb7 {[%emt 0:00:00]} Bxb7 {[%emt 0:00:00]} 43. Nxb7 {[%emt 0:00:00]} Nb6 {[%emt 0:00:00]} 44. Nxc5 {[%emt 0:00:00]} Nxc4 {[%emt 0:00:00]} 45. a4 {[%emt 0:00:00]} Ke5 {[%emt 0:00:00]} 46. Nb3 {[%emt 0:00:00]} Kd5 {[%emt 0:00:00] [#]} 47. Nd4 $1 {[%emt 0:00:00]} Nd6 $2 {[%emt 0:00:00]} (47... Na5 $16 48. Kf1 Kd6) 48. a5 $18 {[%emt 0:00:00]} Kc5 {[%emt 0:00:00]} 49. f4 {[%emt 0:00:00]} (49. Nxe6+ $18 Kb5 50. Kf1) 49... Nc4 $16 {[%emt 0:00:00]} 50. Nxe6+ {[%emt 0:00:00]} Kd6 $2 {[%emt 0:00:00][%mdl 8192]} (50... Kd5 $16 51. Nc7+ Kc5) 51. Nd4 $18 {[%emt 0:00:00]} Nxe3 {[%emt 0:00:02]} 52. Kf2 {[%emt 0:00:00]} Nd5 {[%emt 0:00:07]} 53. Nxf5+ {[%emt 0:00:00]} Kc5 {[%emt 0:00:03]} 54. Nh6 {[%emt 0:02:09]} Nf6 {[%emt 0:00:05]} 55. Ke3 {[%emt 0:01:11]} Kb5 {[%emt 0:00:16]} 56. Kd4 {[%emt 0:00:30]} Nh5 {[%emt 0:00:04]} 57. Nf5 {[%emt 0:00:48]} ({Inferior is} 57. Nxg4 Nxg3 58. Nh2 Ne2+ 59. Ke5 Nxf4 $11) 57... Kxa5 {[%emt 0:00:04]} 58. Ke5 {[%emt 0:00:10]} Kb5 {[%emt 0:00:28]} 59. Ke6 {[%emt 0:00:10]} Kc4 {[%emt 0:00:10]} 60. Kf7 {[%emt 0:00:12]} Kd5 {[%emt 0:00:54]} 61. Kg6 {[%emt 0:00:05]} 1-0

[Event "Israel National League 2024"]
[Site "Israel"]
[Date "2024.02.16"]
[Round "7.4"]
[White "Flom, Gabriel"]
[Black "Erenberg, Ariel"]
[Result "1/2-1/2"]
[ECO "E32"]
[WhiteElo "2421"]
[BlackElo "2496"]
[Annotator "TA"]
[PlyCount "146"]
[EventDate "2024.01.07"]
[EventType "team-tourn"]
[EventCountry "ISR"]
[SourceTitle "playchess.com"]
[Source "ChessBase"]
[SourceQuality "1"]
[TimeControl "40/5400+30:1800+30"]

{[%evp 32,146,0,0,0,-15,-6,-14,-5,-6,-8,-60,-58,-75,-54,-56,-56,-53,-47,-75,-75,-81,-82,-86,-86,-96,-96,-96,-96,-96,-96,-96,-96,-96,-96,-96,-96,-96,-96,-96,-96,-130,-130,-130,-92,-92,-92,-130,-130,-130,-130,-130,-130,-130,-130,-130,-130,-130,-130,-130,-130,-130,-130,-130,-130,-130,-130,-130,-130,-130,-130,-130,-130,-130,-130,-130,-130,-130,-130,-130,-130,-130,-130,-130,-130,-130,-130,-130,-130,-130,-130,-130,-130,-130,-130,-130,-130,-130,-130,-130,-130,-130,-130,-130,-130,-130,-130,-130,-130,-130,-130,-130,-130,-130,0,-130,-130]} 1. d4 {[%emt 0:00:03]} Nf6 {[%emt 0:00:22]} 2. c4 {[%emt 0:00:03]} e6 {[%emt 0:00:05]} 3. Nc3 {[%emt 0:00:04]} Bb4 {[%emt 0:00:04]} 4. Qc2 {[%emt 0:00:02]} O-O {[%emt 0:04:26]} 5. e4 {[%emt 0:00:19]} d5 {[%emt 0:01:01]} 6. e5 {[%emt 0:00:05]} Ne4 {[%emt 0:00:46]} 7. Bd3 {[%emt 0:00:39]} c5 {[%emt 0:01:17]} 8. Nf3 {[%emt 0:01:02] E32: Nimzo-Indian: Classical (4 Qc2): 4...0-0.} cxd4 {[%emt 0:01:22]} 9. Nxd4 {[%emt 0:00:07]} Nd7 {[%emt 0:00:46]} 10. Bf4 {[%emt 0:00:18]} Qh4 {[%emt 0:02:00]} 11. g3 {[%emt 0:00:12]} Qh5 {[%emt 0:00:13]} 12. Be2 {[%emt 0:12:02]} Qg6 {[%emt 0:01:16]} 13. a3 {[%emt 0:00:45]} Nxc3 {[%emt 0:17:32]} 14. Bd3 {[%emt 0:00:01]} Nb5+ {[%emt 0:01:49]} 15. axb4 {[%emt 0:00:03]} Nxd4 {[%emt 0:00:06]} 16. Bxg6 {[%emt 0:00:03]} Nxc2+ {[%emt 0:00:06]} 17. Bxc2 {[%emt 0:00:02]} dxc4 {[%emt 0:00:47]} 18. Be4 {[%emt 0:00:52]} f6 $146 {[%emt 0:29:04]} ({Predecessor:} 18... Nb6 19. Be3 Nd5 20. Rxa7 Bd7 21. Bxd5 Rxa7 22. Bxa7 exd5 23. Bd4 {½-½ Shmeliov,D (2411)-Charbonneau,P (2505) USA tt ICC INT 2014 (1)}) 19. exf6 {[%emt 0:00:03]} Nxf6 {[%emt 0:00:10]} 20. Bg2 {[%emt 0:00:01]} Nd5 {[%emt 0:00:41]} 21. Bxd5 {[%emt 0:00:03]} ({White should try} 21. Bd2 $11) 21... exd5 $15 {[%emt 0:00:05]} 22. Be3 {[%emt 0:00:02]} Bd7 {[%emt 0:10:14]} 23. Kd2 {[%emt 0:00:07]} a6 {[%emt 0:00:13]} 24. f4 {[%emt 0:01:09]} Rfe8 {[%emt 0:01:04]} 25. Rhe1 {[%emt 0:00:06]} Re4 {[%emt 0:04:29]} 26. Bb6 {[%emt 0:00:09]} Rae8 {[%emt 0:01:56]} 27. Rxe4 {[%emt 0:00:09]} Rxe4 {[%emt 0:00:03]} ({Reject} 27... dxe4 $6 28. Ke3 $11) 28. Re1 {[%emt 0:00:09]} Rxe1 {[%emt 0:00:05]} 29. Kxe1 {[%emt 0:00:02]} Kf7 {[%emt 0:00:09]} 30. Kf2 {[%emt 0:00:18]} Bg4 {[%emt 0:00:48]} 31. Bd4 {[%emt 0:01:53]} g6 {[%emt 0:00:14]} 32. Kg2 {[%emt 0:00:48]} h5 {[%emt 0:02:34]} 33. h4 {[%emt 0:00:10]} Ke6 {[%emt 0:00:54]} 34. Kf2 {[%emt 0:00:01]} Kd6 {[%emt 0:00:28]} 35. Ke3 {[%emt 0:00:01]} Kc6 {[%emt 0:00:15]} 36. Kd2 {[%emt 0:00:27]} Kb5 {[%emt 0:00:34]} 37. Kc3 {[%emt 0:01:26]} a5 {[%emt 0:05:13]} 38. bxa5 {[%emt 0:00:05]} Kxa5 {[%emt 0:00:03]} 39. Bc5 {[%emt 0:06:29]} Ka4 {[%emt 0:04:40]} 40. Bb6 {[%emt 0:00:18]} Bf3 {[%emt 0:00:24]} 41. Bd4 {[%emt 0:31:08]} b5 {[%emt 0:30:24]} 42. Bc5 {[%emt 0:00:30]} Be2 {[%emt 0:00:48]} 43. Bd4 {[%emt 0:00:47]} b4+ {[%emt 0:00:22]} 44. Kd2 {[%emt 0:00:10]} Bg4 {[%emt 0:00:05]} 45. Be5 {[%emt 0:00:28]} Bf5 {[%emt 0:03:39]} 46. Bf6 {[%emt 0:00:30]} Kb3 {[%emt 0:02:45]} 47. Be5 {[%emt 0:00:15]} Ka2 {[%emt 0:00:25]} 48. Kc1 {[%emt 0:00:01]} Bd3 {[%emt 0:00:53]} 49. Bf6 {[%emt 0:00:35]} Kb3 {[%emt 0:00:00]} 50. Kd2 {[%emt 0:00:00]} Ka4 {[%emt 0:00:00]} 51. Bg7 {[%emt 0:00:00]} Kb5 {[%emt 0:00:00]} 52. Bf6 {[%emt 0:00:00]} Bf5 {[%emt 0:00:00]} 53. Bg7 {[%emt 0:00:00]} Be4 {[%emt 0:00:00]} 54. Bf6 {[%emt 0:00:00]} Bd3 {[%emt 0:01:42]} 55. Bg7 {[%emt 0:00:00]} Bf1 {[%emt 0:00:58]} 56. Bf6 {[%emt 0:00:00]} Ka4 {[%emt 0:01:03]} 57. Be5 {[%emt 0:00:00]} Kb3 {[%emt 0:00:22]} 58. Bf6 {[%emt 0:00:00]} Ka2 {[%emt 0:00:32]} 59. Kc1 {[%emt 0:00:00]} c3 {[%emt 0:00:20]} 60. bxc3 {[%emt 0:00:00]} b3 {[%emt 0:00:07]} 61. c4 {[%emt 0:00:00]} dxc4 {[%emt 0:03:54]} 62. Bc3 {[%emt 0:00:00]} Bh3 {[%emt 0:00:08]} 63. Bb2 {[%emt 0:00:00]} Bf5 {[%emt 0:00:04]} 64. Bc3 {[%emt 0:00:00]} Ka3 {[%emt 0:02:12]} 65. Bb2+ {[%emt 0:00:00]} Kb4 {[%emt 0:00:14]} 66. Kd2 {[%emt 0:00:00]} Kc5 {[%emt 0:00:37]} 67. Bc3 {[%emt 0:00:00]} Kd5 {[%emt 0:00:08]} 68. Ke3 {[%emt 0:00:00]} Bc2 {[%emt 0:00:13]} 69. Bb2 {[%emt 0:00:00]} Ke6 {[%emt 0:00:21]} 70. Bc3 {[%emt 0:00:00]} Kf5 {[%emt 0:00:09]} 71. Bb2 {[%emt 0:00:00]} Kg4 {[%emt 0:00:09]} 72. Kf2 {[%emt 0:00:00]} Kf5 {[%emt 0:00:44]} 73. Ke3 {[%emt 0:00:00]} Bd3 {[%emt 0:01:09]} 1/2-1/2

[Event "Israel National League 2024"]
[Site "Israel"]
[Date "2024.02.16"]
[Round "7.5"]
[White "Raznikov, Danny"]
[Black "Deutsch, Eyal"]
[Result "1-0"]
[ECO "E07"]
[WhiteElo "2476"]
[BlackElo "2289"]
[Annotator "TA"]
[PlyCount "45"]
[EventDate "2024.01.07"]
[EventType "team-tourn"]
[EventCountry "ISR"]
[SourceTitle "playchess.com"]
[Source "ChessBase"]
[SourceQuality "1"]
[TimeControl "40/5400+30:1800+30"]

{[%evp 20,45,31,43,43,62,41,34,80,66,47,60,114,105,112,37,466,479,466,492,493,439,495,484,497,497,573,501]} 1. d4 {[%emt 0:00:05]} Nf6 {[%emt 0:00:21]} 2. c4 {[%emt 0:00:22]} e6 {[%emt 0:00:07]} 3. Nf3 {[%emt 0:01:23]} d5 {[%emt 0:00:09]} 4. Nc3 {[%emt 0:00:52]} c6 {[%emt 0:00:08]} 5. g3 {[%emt 0:00:48]} Be7 {[%emt 0:00:41]} 6. Bg2 {[%emt 0:00:52]} O-O {[%emt 0:00:09]} 7. O-O {[%emt 0:01:26]} b6 {[%emt 0:00:15]} 8. Qd3 {[%emt 0:10:08]} Ba6 {[%emt 0:02:04]} 9. b3 {[%emt 0:01:00]} Nbd7 {[%emt 0:00:09]} 10. e4 {[%emt 0:03:06]} Rc8 {[%emt 0:05:47]} 11. Rd1 {[%emt 0:03:59]} c5 {[%emt 0:12:35]} 12. exd5 {[%emt 0:05:41]} exd5 {[%emt 0:01:19]} 13. Nb5 {[%emt 0:18:53]} dxc4 {[%emt 0:07:11]} (13... Bxb5 $14 14. cxb5 Qc7) 14. bxc4 $16 {[%emt 0:00:57]} Bxb5 $1 {[%emt 0:02:07]} 15. cxb5 {[%emt 0:00:07]} c4 {[%emt 0:00:20]} (15... Re8 $14) 16. Qc2 {[%emt 0:06:31] White is more active.} Qc7 {[%emt 0:08:17] Dodges Ne5} 17. d5 {[%emt 0:11:43]} (17. Nh4 $16) 17... Ne5 $2 {[%emt 0:02:50][%mdl 8192] [#] Against Bc6. This move loses the game for Black.} (17... Ng4 $14) 18. Nxe5 $1 $18 {[%emt 0:02:55] White is clearly winning.} Qxe5 {[%emt 0:00:08]} 19. Bf4 {[%emt 0:00:14]} Qh5 {[%emt 0:00:56]} 20. d6 {[%emt 0:01:01][%cal Bd5d6,Bd6d7][%mdl 32]} Bd8 {[%emt 0:00:09]} 21. d7 {[%emt 0:01:47]} Rc5 {[%emt 0:01:20]} 22. Bd6 {[%emt 0:01:57][%csl LRc5,LRf8] This pair of bishops is nice.} Rxb5 {[%emt 0:02:38]} 23. Qxc4 {[%emt 0:06:42] Weighted Error Value: White=0.08 (flawless) /Black=0.75.  Loses game:     	---       	Black=1      Mistake:       	White=1     	Black=2      OK:         	White=5     	Black=1      Best:        	White=1     	---        Strong:       	White=1     	Black=1} 1-0

[Event "Israel National League 2024"]
[Site "Israel"]
[Date "2024.02.16"]
[Round "7.6"]
[White "Solomon, Asif"]
[Black "Mindlin, Alon"]
[Result "0-1"]
[ECO "E25"]
[WhiteElo "2242"]
[BlackElo "2438"]
[Annotator "RC"]
[PlyCount "68"]
[EventDate "2024.01.07"]
[EventType "team-tourn"]
[EventCountry "ISR"]
[SourceTitle "playchess.com"]
[Source "ChessBase"]
[SourceQuality "1"]
[TimeControl "40/5400+30:1800+30"]

1. d4 {[%emt 0:00:08]} Nf6 {[%emt 0:00:21]} 2. c4 {[%emt 0:00:07]} e6 {[%emt 0:00:06]} 3. Nc3 {[%emt 0:00:06]} Bb4 {[%emt 0:00:06]} 4. f3 {[%emt 0:00:26]} d5 {[%emt 0:00:32]} 5. a3 {[%emt 0:00:38]} Bxc3+ {[%emt 0:00:21]} 6. bxc3 {[%emt 0:00:06]} c5 {[%emt 0:00:07]} 7. cxd5 {[%emt 0:03:35]} exd5 {[%emt 0:01:43]} 8. e3 {[%emt 0:01:52]} Qc7 {[%emt 0:00:06]} 9. Ra2 {[%emt 0:05:58]} Bf5 {[%emt 0:02:04]} 10. g4 {[%emt 0:06:22]} Be6 {[%emt 0:02:00]} 11. Ne2 {[%emt 0:07:53]} Nc6 {[%emt 0:07:06]} 12. Nf4 {[%emt 0:02:59]} h6 {[%emt 0:09:51]} 13. Rb2 {[%emt 0:18:40]} c4 {[%emt 0:10:27]} 14. e4 {[%emt 0:05:17]} O-O-O {[%emt 0:02:32]} 15. e5 {[%emt 0:07:30]} Nd7 {[%emt 0:02:00]} 16. Bg2 {[%emt 0:04:46]} g5 {[%emt 0:07:11]} 17. Nxe6 {[%emt 0:00:54]} fxe6 {[%emt 0:00:02]} 18. h4 {[%emt 0:01:19]} Na5 {[%emt 0:13:33]} 19. hxg5 {[%emt 0:04:40]} hxg5 {[%emt 0:01:31]} 20. Kf2 {[%emt 0:01:15]} Nb3 {[%emt 0:08:19]} 21. Bxg5 {[%emt 0:00:31]} Rdg8 {[%emt 0:00:06]} 22. f4 {[%emt 0:01:48]} Qa5 {[%emt 0:05:03]} 23. Rxh8 {[%emt 0:03:32]} Rxh8 {[%emt 0:00:39]} 24. Qc2 {[%emt 0:00:41]} Na1 {[%emt 0:03:24]} 25. Qb1 {[%emt 0:02:32]} Qxc3 {[%emt 0:06:30]} 26. Qxa1 {[%emt 0:02:08]} Qxd4+ {[%emt 0:00:43]} 27. Kg3 {[%emt 0:04:56]} Nc5 {[%emt 0:02:09]} 28. Bf3 {[%emt 0:03:29]} Ne4+ {[%emt 0:03:45]} 29. Bxe4 {[%emt 0:05:24]} dxe4 {[%emt 0:00:06]} 30. Kg2 {[%emt 0:00:21]} Qc3 {[%emt 0:01:10]} 31. Kg1 {[%emt 0:01:12]} Qe3+ {[%emt 0:01:20]} 32. Rf2 {[%emt 0:00:14]} Qh3 {[%emt 0:00:03]} 33. Ra2 {[%emt 0:01:34]} Qh1+ {[%emt 0:00:05]} 34. Kf2 {[%emt 0:00:03]} Qf3+ {[%emt 0:00:05]} 0-1